Cogmind - Beta 10.2 @@@ ROGUE MODE // 2021.07.23 @ 20:59:13 Player: Plexion Result: Self-destructed Performance ------------- Evolutions (1) 500 Regions Visited (5) 1000 Robots Destroyed (47) 235 Value Destroyed (1291) 1291 Prototype IDs (28) 560 Alien Tech Used (0) 0 Bonus (288) 288 TOTAL SCORE: 3874 Bonus ------- Aligned with FarCom 300 Friendly Fire -12 Cogmind --------- Core Integrity 58/400 Matter 175/300 Energy 240/240 System Corruption 2% Temperature Cool (0) Movement Treading (180) Ox1 Location -9/Exiles Parts ------- > --- POWER (1) -------- Nuclear Core > --- PROPULSION (2) --- Light Treads Light Treads > --- UTILITY (4) ------ High-capacity Storage Unit Hardened Light Armor Plating Hardened Light Armor Plating > --- WEAPON (2) ------- 8R-AWN's Boregun Katana > --- INVENTORY (12) --- Heavy Ion Engine Light Treads Advanced Myomer Leg High-capacity Storage Unit Gravity Neutralizing Apparatus Hardened Light Armor Plating Decoy Drone Bay (16/16) Beam Rifle Heavy Assault Rifle 8R-AWN's Boregun Rocket Launcher Peak State ------------ > --- POWER ------------ Nuclear Core > --- PROPULSION ------- Light Treads Light Treads > --- UTILITY ---------- Experimental Heat Sink High-capacity Storage Unit Hardened Light Armor Plating Hardened Light Armor Plating > --- WEAPON ----------- 8R-AWN's Boregun Katana > --- INVENTORY -------- Heavy Ion Engine Light Treads Advanced Myomer Leg High-capacity Storage Unit Gravity Neutralizing Apparatus Hardened Light Armor Plating Decoy Drone Bay Beam Rifle Heavy Assault Rifle 8R-AWN's Boregun Rocket Launcher [Rating: 35] Favorites ----------- Power Nuclear Core Engine Ion Engine Power Core Nuclear Core Propulsion Light Treads Treads Light Treads Flight Unit Improved Flight Unit Utility High-capacity Storage Unit Device Decoy Drone Bay Storage High-capacity Storage Unit Protection Hardened Light Armor Plating Weapon Heavy Assault Rifle Energy Gun Medium Laser Ballistic Gun Heavy Assault Rifle Launcher Rocket Launcher Special Weapon Plasma Cutter Slashing Weapon Katana Build | -11 -10 -10 -9 -9 -9 ------- Run | Scr Mat Min Mat Min Exi Slots Evolved 2 | . . . 2 . . Power . | . . . . . . Propulsion . | . . . . . . Utility 2 | . . . 2 . . Weapon . | . . . . . . Parts Attached 53 | 7 4 5 15 2 20 Power 4 | 2 . 1 1 . . Engine 3 | 2 . 1 . . . Core 1 | . . . 1 . . Reactor . | . . . . . . Propulsion 14 | 2 . 2 7 . 3 Treads 13 | 2 . 2 6 . 3 Leg . | . . . . . . Wheel . | . . . . . . Hover . | . . . . . . Flight 1 | . . . 1 . . Utility 18 | 1 4 . 3 . 10 Device 3 | . . . . . 3 Storage 5 | 1 4 . . . . Processor . | . . . . . . Hackware . | . . . . . . Protection 10 | . . . 3 . 7 Artifact . | . . . . . . Weapon 17 | 2 . 2 4 2 7 Energy Gun 4 | 1 . 1 1 . 1 Energy Cannon . | . . . . . . Ballistic Gun 7 | 1 . 1 2 1 2 Ballistic Cannon . | . . . . . . Launcher 3 | . . . . 1 2 Special Weapon 1 | . . . . . 1 Impact Weapon . | . . . . . . Slashing Weapon 2 | . . . 1 . 1 Piercing Weapon . | . . . . . . Special Melee Weapon . | . . . . . . Unidentified Prototypes 5 | . . . 1 . 4 Parts Lost 18 | . . 6 3 . 9 Power 2 | . . 1 1 . . Propulsion 6 | . . 2 1 . 3 Utility 3 | . . . . . 3 Weapon 7 | . . 3 1 . 3 Highest Loss Streak 3 | . . 2 2 . 3 Average Slot Usage (%) 94 | . 99 89 96 100 93 Engine 6 | . 14 14 1 . . Core 5 | . . . 9 11 11 Treads 24 | . 28 27 22 22 21 Device 1 | . . . . . 4 Storage 24 | . 27 28 22 22 20 Protection 10 | . . . 21 22 14 Energy Gun 5 | . 14 12 2 . . Ballistic Gun 12 | . 14 5 14 22 15 Launcher 1 | . . . . . 3 Slashing Weapon 1 | . . . 3 . 1 Naked Turns . | . . . . . . Heaviest Build 92 | 12 72 72 87 87 92 Greatest Support 40 | 40 40 40 40 40 40 Greatest Overweight (x) 22 | . 3 22 2 2 2 Average Overweight (x) 2 | . . 5 1 2 1 Largest Inventory Capacity 20 | 6 20 20 20 20 20 Average Capacity 18 | 5 17 20 20 20 19 Most Carried 20 | 2 11 11 20 20 20 Average Carried 12 | 1 7 9 14 19 17 Final Capacity 20 | 6 20 20 20 20 12 Final Carried 20 | 2 11 9 19 20 12 Class Distribution -------------------- 89% | Hauler-Mutant 8% | Mutant Dominant Class ---------------- Hauler-Mutant | -10/Materials Hauler-Mutant | -10/Mines Hauler-Mutant | -9/Materials Hauler-Mutant | -9/Mines Hauler-Mutant | -9/Exiles Resources | -11 -10 -10 -9 -9 -9 ----------- Run | Scr Mat Min Mat Min Exi Matter Collected 856 | 170 168 89 234 75 120 Remotely . | . . . . . . Salvage Created 1839 | . 290 387 1020 22 120 Parts 118 | . 28 20 58 2 10 Haulers Intercepted 1 | . . . 1 . . Recyclers Shooed 4 | . 3 1 . . . Parts Field Recycled . | . . . . . . Retrieved Matter . | . . . . . . Parts Self-Destructed . | . . . . . . Prevented . | . . . . . . Kills | -11 -10 -10 -9 -9 -9 ------- Run | Scr Mat Min Mat Min Exi Combat Hostiles Destroyed 42 | . 7 9 19 3 4 Melee 8 | . . . 7 . 1 Guns 28 | . 7 9 12 . . AOE 6 | . . . . 3 3 Classes Destroyed 10 | . 6 . 3 . 1 Worker 1 | . 1 . . . . Builder 1 | . 1 . . . . Hauler 1 | . . . 1 . . Recycler 2 | . 1 . 1 . . Watcher 3 | . 2 . 1 . . Swarmer 10 | . 6 1 . 3 . Grunt 21 | . 1 8 12 . . Duelist 1 | . . . 1 . . Sentry 6 | . . . 6 . . Assembled 3 | . . . . . 3 Best Kill Streak 5 | . 4 2 5 3 3 Combat Bots Only 5 | . 3 2 5 3 3 Max Kills in Single Turn 3 | . 2 1 2 3 1 Gunslinging 1 | . . . 1 . . Exploded 3 | . . . . 3 1 Melee 1 | . . . 1 . 1 Uniques/NPCs Destroyed 1 | . . . . . 1 8R-AWN (-9/Exiles) Combat | -11 -10 -10 -9 -9 -9 -------- Run | Scr Mat Min Mat Min Exi Damage Taken 3564 | . 218 694 723 32 1897 Core 460 | . 20 98 102 . 240 Absorbed by Shields . | . . . . . . Core Remaining (%) 76 | 100 . 52 . . . Volleys Fired 128 | . 28 59 28 1 12 Largest 2 | . 2 2 2 1 2 Hottest 70 | . 70 70 46 33 46 Shots Fired 218 | . 56 93 51 1 17 Gun 208 | . 56 93 51 . 8 Cannon . | . . . . . . Launcher 7 | . . . . 1 6 Special 3 | . . . . . 3 Kinetic 148 | . 28 66 46 . 8 Thermal 50 | . 28 19 . . 3 Explosive 7 | . . . . 1 6 Electromagnetic 13 | . . 8 5 . . Robot Hit Streak 22 | . 10 15 20 21 22 Robot Miss Streak 3 | . 3 2 2 . 1 Penetration Max . | . . . . . . Secondary Targets 2 | . . 1 1 . . Max Gunslinging Chain 1 | . . 1 1 . . Shots Hit Robots 222 | . 31 69 61 1 60 Core Hits 90 | . 18 25 32 3 12 Critical Hits 1 | . . . . . 1 Critical Kills . | . . . . . . Critical Parts Destroyed . | . . . . . . Melee Attacks 81 | . . . 22 . 59 Impact . | . . . . . . Slashing 81 | . . . 22 . 59 Piercing . | . . . . . . Sneak Attacks 3 | . . . 3 . . Combat Hostiles . | . . . . . . Follow-up Attacks . | . . . . . . Damage Inflicted 4598 | . 378 747 1479 162 1832 Guns 1740 | . 378 641 620 . 101 Cannons . | . . . . . . Explosions 548 | . . 106 . 162 280 Melee 2307 | . . . 859 . 1448 Ramming . | . . . . . . Kinetic 1152 | . 114 377 560 . 101 Thermal 561 | . 264 294 . . 3 Explosive 442 | . . . . 162 280 Electromagnetic 136 | . . 76 60 . . Impact . | . . . . . . Slashing 2307 | . . . 859 . 1448 Piercing . | . . . . . . Highest Corruption 2 | . . . . . 2 Average Corruption 2 | . . . . . 2 Corruption Purged . | . . . . . . Effects 2 | . . . . . 2 Heat Flow Errors 1 | . . . . . 1 Data Loss (minor) 1 | . . . . . 1 Overload Shots . | . . . . . . Overflow Damage 141 | . . 33 108 . . Projectiles . | . . . . . . Explosions 33 | . . 33 . . . Melee 108 | . . . 108 . . Knockbacks . | . . . . . . Impact . | . . . . . . Kinetic . | . . . . . . Secondary . | . . . . . . Self-Inflicted Damage 157 | . . 40 . 20 97 Shots 4 | . . 1 . 1 2 Rammed . | . . . . . . Targets Rammed . | . . . . . . Kicked . | . . . . . . Crushed . | . . . . . . Highest Temperature 233 | . 220 233 88 10 161 Average Temperature 51 | . 72 57 34 7 46 Received Heat Transfer 672 | . 6 357 309 . . Siege Activations . | . . . . . . Robots Corrupted . | . . . . . . Combat Hostiles . | . . . . . . Parts Fried . | . . . . . . Impact Corruptions . | . . . . . . Robots Melted . | . . . . . . Combat Hostiles . | . . . . . . Parts Melted 2 | . 1 1 . . . Heat Transferred 1422 | . 740 655 . . 27 Parts Sabotaged . | . . . . . . Parts Stolen . | . . . . . . Parts Stripped . | . . . . . . Power Chain Reactions 1 | . . 1 . . . Missiles Intercepted . | . . . . . . Alert | -11 -10 -10 -9 -9 -9 ------- Run | Scr Mat Min Mat Min Exi Peak Influence 290 | . 159 246 290 182 . Initial 112 | . . 21 17 112 . Average 81 | . 54 48 120 181 . Maximum Alert Level 1 | . . 1 1 . . Low Security (%) 93 | 100 100 97 81 100 . Level 1 6 | . . 2 18 . . Level 2 . | . . . . . . Level 3 . | . . . . . . Level 4 . | . . . . . . Level 5 . | . . . . . . High Security . | . . . . . . Max Security . | . . . . . . Squads Dispatched 2 | . 1 . 1 . . Investigation 1 | . 1 . . . . Extermination . | . . . . . . Reinforcement 1 | . . . 1 . . Assault . | . . . . . . Garrison . | . . . . . . Intercept . | . . . . . . Construction Impeded . | . . . . . . Haulers Reinforced . | . . . . . . Stealth | -11 -10 -10 -9 -9 -9 --------- Run | Scr Mat Min Mat Min Exi Distress Signals 3 | . . . 3 . . Communications Jammed . | . . . . . . Distress Signals . | . . . . . . Times Spotted 74 | . 11 17 29 4 13 Peak Tracking Total 10 | . 4 4 6 4 10 Tactical Retreats 9 | . . 4 1 . 4 Traps | -11 -10 -10 -9 -9 -9 ------- Run | Scr Mat Min Mat Min Exi Traps Triggered 1 | . 1 . . . . Indirectly . | . . . . . . Trap Hack Attempts . | . . . . . . Triggered . | . . . . . . Disarmed . | . . . . . . Reprogrammed . | . . . . . . Reused . | . . . . . . Traps Extracted . | . . . . . . Installed . | . . . . . . Triggered . | . . . . . . Exploded 3 | . . . . . 3 Machines | -11 -10 -10 -9 -9 -9 ---------- Run | Scr Mat Min Mat Min Exi Machines Disabled 4 | . . . . . 4 Max in Single Turn 2 | . . . . . 2 Machines Sabotaged . | . . . . . . Garrisons Compromised . | . . . . . . Overloaded Fab Kills . | . . . . . . Fab Network Shutdowns . | . . . . . . Hacking | -11 -10 -10 -9 -9 -9 --------- Run | Scr Mat Min Mat Min Exi Machines Accessed 7 | . 3 1 1 . 2 Terminals 4 | . 3 . 1 . . Fabricators . | . . . . . . Repair Stations . | . . . . . . Recycling Units . | . . . . . . Scanalyzers . | . . . . . . Garrison Access . | . . . . . . Total Hacks 12 | . 7 1 2 . 2 Successful 7 | . 4 1 . . 2 Failed 5 | . 3 . 2 . . Catastrophic . | . . . . . . Database Lockouts . | . . . . . . Manual 11 | . 8 . 2 . 1 Terminals 9 | . 7 . 2 . . Fabricators . | . . . . . . Repair Stations . | . . . . . . Recycling Units . | . . . . . . Scanalyzers . | . . . . . . Garrison Access . | . . . . . . Terminal Hacks 5 | . 2 1 . . 2 Record 1 | . . . . . 1 Robot Analysis 1 | . 1 . . . . Open Door 1 | . . 1 . . . Zone Layout 1 | . 1 . . . . EX-Prototype ID Bank 1 | . . . . . 1 Fabricator Hacks . | . . . . . . Repair Station Hacks . | . . . . . . Recycling Unit Hacks . | . . . . . . Scanalyzer . | . . . . . . Garrison Access Hacks . | . . . . . . Unauthorized Hacks 2 | . 2 . . . . Terminals 2 | . 2 . . . . Track 2 | . 2 . . . . Fabricators . | . . . . . . Repair Stations . | . . . . . . Recycling Units . | . . . . . . Scanalyzers . | . . . . . . Garrison Access . | . . . . . . Data Cores Recovered . | . . . . . . Used . | . . . . . . Hacking Detections 4 | . 3 . 1 . . Full Trace Events . | . . . . . . Feedback Events . | . . . . . . Feedback Blocked . | . . . . . . Robot Schematics Acquired . | . . . . . . Robots Built . | . . . . . . Matter . | . . . . . . Time . | . . . . . . Total Robot Build Rating . | . . . . . . Part Schematics Acquired . | . . . . . . Parts Built . | . . . . . . Matter . | . . . . . . Time . | . . . . . . Total Part Build Rating . | . . . . . . Parts Repaired . | . . . . . . Time . | . . . . . . Parts Recycled . | . . . . . . Recycled Matter . | . . . . . . Retrieved Matter . | . . . . . . Retrieved Components . | . . . . . . Parts Scanalyzed . | . . . . . . Part Schematics Acquired . | . . . . . . Parts Damaged . | . . . . . . Bothacking | -11 -10 -10 -9 -9 -9 ------------ Run | Scr Mat Min Mat Min Exi Used RIF Installer . | . . . . . . Robots Hacked . | . . . . . . Non-combat . | . . . . . . Combat . | . . . . . . Robot Hacks Applied . | . . . . . . Relay Couplers Released . | . . . . . . Robots Rewired . | . . . . . . Allies Hacked . | . . . . . . Hacks Repelled . | . . . . . . Allies | -11 -10 -10 -9 -9 -9 -------- Run | Scr Mat Min Mat Min Exi Total Allies . | . . . . . . Largest Group . | . . . . . . Highest-Rated Group . | . . . . . . Highest-Rated Ally . | . . . . . . Total Orders . | . . . . . . Ally Attacks . | . . . . . . Total Damage . | . . . . . . Kills . | . . . . . . Allies Corrupted . | . . . . . . Allies Melted . | . . . . . . Intel | -11 -10 -10 -9 -9 -9 ------- Run | Scr Mat Min Mat Min Exi Robot Analysis Total 1 | . 1 . . . . Derelict Logs Recovered 1 | . . 1 . . . Drone Launches . | . . . . . . Drone Recoveries . | . . . . . . Exploration | -11 -10 -10 -9 -9 -9 ------------- Run | Scr Mat Min Mat Min Exi Turns Passed 5642 | 93 892 1478 1197 330 1652 Spaces Moved 2237 | 64 451 350 500 163 709 Core 101 | 18 12 71 . . . Treads 2136 | 46 439 279 500 163 709 Legs . | . . . . . . Wheels . | . . . . . . Hover . | . . . . . . Flight . | . . . . . . Fastest Speed 50 | 50 160 180 180 200 180 Average Speed 219 | 129 174 376 198 200 198 Slowest Speed 1150 | 160 200 1150 200 200 200 Overloaded Moves . | . . . . . . Propulsion Burnouts . | . . . . . . Robots Hopped . | . . . . . . Cave-ins Triggered . | . . . . . . Exploration Rate (%) 54 | 5 70 87 62 34 70 Regions Visited 5 Branch Regions 3 Pre-discovered Areas 1 | . . . . . 1 Known Exits Taken . | . . . . . . Unknown Exits Taken 5 | 1 1 1 1 1 . Scrap Searched 3 | . . 1 . 2 . Spaces Dug . | . . . . . . Terrain Destroyed 49 | . . 9 . 11 29 Melee . | . . . . . . Projectile . | . . . . . . AOE 49 | . . 9 . 11 29 Terrain Rammed . | . . . . . . Walls Destroyed . | . . . . . . Machines Disabled . | . . . . . . Actions | -11 -10 -10 -9 -9 -9 --------- Run | Scr Mat Min Mat Min Exi Total 2642 | 72 506 430 620 166 848 Wait 96 | . 16 15 40 . 25 Move 2232 | 63 450 349 499 162 709 Hop . | . . . . . . Pick Up 29 | 2 7 2 9 1 8 Fast Attach 14 | 5 1 . 5 . 3 Attach 23 | 1 . 5 5 . 12 Detach 8 | . . . 4 . 4 Swap 16 | 1 3 . 5 2 5 Drop 15 | . 1 . 3 . 11 Fire 128 | . 28 59 28 1 12 Melee 81 | . . . 22 . 59 Ram . | . . . . . . Kick . | . . . . . . Crush . | . . . . . . Escape Stasis . | . . . . . . Rewire . | . . . . . . Trap . | . . . . . . Miscellaneous . | . . . . . . Route ------- -11/Scrapyard -10/Materials (discovered 3 exits: *Mat / *Min x2) -10/Mines (discovered 2 exits: *Mat x2) -9/Materials (discovered 3 exits: [*Mat x2] / [*Min]) -9/Mines -9/Exiles (discovered 2 exits: [*Min x2]) History --------- Turn | Location | Event 18 | -11/Scrapyard | Discovered new exit (range 15) 94 | -11/Scrapyard | Entered Materials 303 | -10/Materials | Build established: Mutant 459 | -10/Materials | Discovered new exit (range 16) 574 | -10/Materials | Discovered new exit (range 14) 697 | -10/Materials | Build established: Hauler-Mutant 936 | -10/Materials | Discovered new exit (range 13) 986 | -10/Materials | Entered Mines 1003 | -10/Mines | Learned Materials garrison access intel 1318 | -10/Mines | Discovered new exit (range 6) 1510 | -10/Mines | Found the Drone Emporium 1519 | -10/Mines | Found Prototype Device 2455 | -10/Mines | Discovered new exit (range 5) 2464 | -10/Mines | Entered Materials 2464 | -9/Materials | Evolved 2 slots: Utility x2 3006 | -9/Materials | Discovered new exit (range 14) 3250 | -9/Materials | Discovered new exit (range 13) 3596 | -9/Materials | Discovered new exit (range 9) 3661 | -9/Materials | Entered Mines 3983 | -9/Mines | Deemed a non-threat by the Exiles lab entrance 3983 | -9/Mines | Discovered new exit (range 5) 3991 | -9/Mines | Entered Exiles 4021 | -9/Exiles | Discovered new exit (range 15) 4045 | -9/Exiles | Met 8R-AWN 4073 | -9/Exiles | Met EX-HEX 4175 | -9/Exiles | Met EX-DEC 4217 | -9/Exiles | Learned location of Zion (-6) 4361 | -9/Exiles | Discovered new exit (range 14) 4467 | -9/Exiles | Met EX-BIN 4495 | -9/Exiles | Aligned with FarCom system 4497 | -9/Exiles | Given EX-Vault access code 4549 | -9/Exiles | Opened EX-Vault 4560 | -9/Exiles | Identified Decoy Drone Bay 4569 | -9/Exiles | Found Supersonic Drone Bay 4612 | -9/Exiles | Warned to stay clear of 0b10 Research branches 5250 | -9/Exiles | Attacked by the Exiles 5389 | -9/Exiles | Core integrity fell below 50% 5439 | -9/Exiles | Lost 3 parts (2n1u) 5469 | -9/Exiles | Core integrity fell below 20% 5534 | -9/Exiles | Destroyed 8R-AWN 5542 | -9/Exiles | Found Prototype Ballistic Gun 5542 | -9/Exiles | Identified 8R-AWN's Boregun 5545 | -9/Exiles | Found 8R-AWN's Boregun 5643 | -9/Exiles | Self-destructed Last Messages --------------- 05510_ HV Slug penetrates Wall. 05510_ Destroyed Prototype Protection. 05514_ Penetrated by HV Slug. 05514_ Critical hit. 05514_ Hrd. Light Armor Plating destroyed. 05514_ Penetrated by HV Slug. 05534_ 8R-AWN destroyed. 05538_ Acquired 120 matter. 05542_ Acquired Prototype Ballistic Gun. 05542_ Identified 8R-AWN's Boregun. 05545_ Acquired 8R-AWN's Boregun. 05550_ Acquired Prototype Device. 05555_ Acquired Prototype Leg. 05559_ Acquired Prototype Device. 05559_ Identified Exp. Heat Sink. 05561_ Dropped Exp. Heat Sink. 05563_ Acquired Prototype Device. 05563_ Identified Gravity Neutralizing Apparatus. 05565_ Dropped Gravity Neutralizing Apparatus. 05566_ System corrupted: Heat flow error (+172). Map ----- +----------------------------------------------------+ | ????????????????????????????????????????#" ## | | ????????????????????????????????????????#""""""?# | | ????????????????????????????????????????##"###??# | | ???????????????????????????????????????????????# | | ???????????????????????????????????????????????# | | #?????????????????????????????????????????????## | | ?????????????#######?????????????????????????#" | | #######??????#!!! "#?????????????????????????#" | | #""##?????# "#?????????????????????????#" | | #?????# "#?????????????????????????#" | | =! ##???## ""#????????????##???????????#" | | !! #####" ""#???????????? """????????#" | | # ! * =##" ""#????????????" """#???????## | | ## !!#"" #??????????????" ?????????# | | ?#"## !! #?????????????"" ?????????#" | | ?##?#### ##?####???????"" "#????????#" | | ???????### ## ##?????? ""?????????#" | | ?########" ###??????" "?????????##" | | ?# !!"" " # # ##?????# #????????##"" | | ?#! ## # #???### ###?######"" | | ?#! " # "#####X# #"###""""""" | | ?#! # #; """""" " "" | | ?# !""" """"##### "" """ " | | ?########## #???#### " " | | ??????????# #??????# | | ??????????# #??????### # @ % | | ??????????# #????????#### | | ??????????# #???????????## | | ??????????# #????????????##" | | ??????????# #?????????????#""" """" | | ??????????? ?????????????##" ##### | | ??????????? ?????????????#"" ""##???? | | ???????????#?????????????#""" """##????? | | ????????????????????????#""" """##?????? | | ????????????????????????#""" ""#??????? | | ????????????????????????#"" ########? | | ????????????????????????#""" ## ## | | ????????????????????????#"" " | | ????????????????????????##"" | | ?????????????????????????#"""" | | ?????????????????????????## | | ??????????????????????????#" " | | ??????????????????????????#"""" ""## | | ??????????????????????????#"" ""#### | | ???????????????????????????" """"##??# | | ???????????????????????????""" """#??## | | ??????????????????????????## ""##??#! | | ???????????????????????????#"" """##???#" | | ????????????????????????????#""" ##????#" | | ?????????????????????????????#"""" ##?????#! | +----------------------------------------------------+ Best States ------------- Heat Dissipation 54 Energy Generation 14 Energy Capacity 250 Matter Stores 300 Matter Capacity 300 Sight Range 16 Terrain Scan Density 10 Armor Coverage 450 Evasion (%) 50 Recoil Reduction 2 Item Schematics ----------------- None Robot Schematics ------------------ None Fabricated ------------ Nothing Alien Tech Used ----------------- None Achievements -------------- None Challenges ------------ None Game ------ Seed ParticleCentriumShield Manual? 0 Play Time 00:37:35 Cumulative 202.9 hours Start 2021.07.15 @ 11:10:20 End 2021.07.23 @ 20:59:13 Sessions 3 Manual Loads 0 Difficulty Rogue Special Mode None Game No. 260 Rogue 173 Adventurer 87 Explorer 0 Win Type - Total 4 Types 3/0/0/1/0/0/0/0/0 Lore% 69 Gallery% 77 Achievement% 62 Wizard Run 0 Options --------- ASCII 0 Keyboard 0 Movement Vi Keybinds 0 Fullscreen 1 Font 18/Smallcaps Map View 76x50 Tactical HUD 1 Map Filters NONE Filters NONE Steam 1 RUN: 559c3aab-a80a-4df1-93e6-bd452780405e